bitfinex/quotes_ETHUSD_20260304
["timestamp","ask_amount","ask_price","bid_price","bid_amount"]
[1772663991262,0.48896469,2145.8,2145.5,1.754]
[1772663991629,0.48796469,2145.6,2145.2,2.91935488]
[1772663991829,0.48796469,2145.6,2145.1,1.16541577]
[1772663992053,0.48796469,2145.6,2145.2,1.754]
[1772663993760,0.48796469,2145.6,2145.3,1.16533818]
[1772663993945,0.48896469,2145.6,2145.3,1.16533818]
[1772663995339,0.001,2145.6,2145.3,1.16533818]
[1772663996467,0.001,2145.6,2145.2,3.07587086]
[1772663996639,0.48896469,2145.6,2145.2,3.07587086]
[1772663999946,1.65414249,2145.6,2145.2,3.07587086]
[1772664000139,0.48796469,2145.5,2145.2,0.0011]
[1772664000344,0.48796469,2145.3,2145.2,0.0011]
[1772664000545,0.48796469,2145.3,2144.8,0.0011]
[1772664001040,0.001,2145.6,2144.8,0.0011]
[1772664001272,0.001,2145.8,2144.9,0.46541167]
[1772664002346,0.001,2145.8,2145.1,0.46541167]
[1772664002544,0.48896469,2145.8,2144.9,1.16553382]
[1772664002779,0.48896469,2145.8,2144.8,2.92068277]
[1772664003163,0.48896469,2145.8,2144.9,0.46541167]
[1772664003357,0.48896469,2145.8,2144.9,2.21941167]
[1772664004446,0.48796469,2145.6,2145.0,1.63091283]
[1772664004681,0.48896469,2145.8,2145.1,0.46541167]
[1772664004865,1.1660731,2145.8,2145.1,0.46541167]
[1772664005068,1.16606932,2145.8,2145.1,0.46541167]
[1772664005273,0.001,2145.8,2145.1,0.46541167]
[1772664006476,0.001,2145.8,2145.2,1.1653925]
[1772664006682,0.001,2145.8,2145.3,0.46541167]
[1772664007558,0.001,2145.6,2145.3,0.46541167]
[1772664007972,0.001,2145.8,2145.3,0.46541167]
[1772664008549,0.001,2145.8,2145.4,1.16528386]
[1772664008881,0.001,2145.8,2145.5,1.758]
[1772664009385,0.48896469,2145.8,2145.4,1.759]
[1772664010480,0.48896469,2145.8,2145.1,0.0011]
[1772664010683,0.48796469,2145.6,2145.1,0.0011]
[1772664011455,0.48796469,2145.4,2144.9,0.0011]
[1772664012566,1.16533818,2145.3,2144.9,0.0011]
[1772664012773,0.48796469,2145.2,2144.9,0.0011]
[1772664013997,0.48796469,2145.2,2144.9,0.0022]
[1772664015069,1.6533771,2145.2,2144.9,0.0022]
[1772664015810,0.48796469,2145.1,2144.8,0.0011]
[1772664017497,1.65342802,2145.1,2144.8,0.0011]
[1772664019796,0.47934422,2145.0,2144.8,0.0011]
[1772664020496,0.47934422,2145.0,2144.6,0.0011]
[1772664020966,0.47934422,2145.0,2144.5,0.0011]
[1772664021169,0.47934422,2145.0,2143.8,1.65670432]
[1772664021366,0.47934422,2145.0,2143.9,0.0022]
[1772664022171,0.47934422,2145.0,2143.9,0.0011]
[1772664022172,0.47934422,2144.8,2143.9,0.0011]
[1772664024174,0.47934422,2144.6,2143.9,0.0011]
[1772664026117,0.46697847,2144.4,2144.0,0.0011]
[1772664029216,1.63284946,2144.4,2144.0,0.0011]
[1772664030221,0.46697847,2144.3,2144.0,0.0011]
[1772664030884,1.16587099,2144.4,2144.1,0.0011]
[1772664031086,1.63277755,2144.5,2144.1,0.0011]
[1772664031819,0.46697847,2145.1,2144.2,0.45765971]
[1772664032113,0.46697847,2145.1,2144.2,0.45875971]
[1772664032326,0.46697847,2144.8,2144.2,0.45875971]
[1772664032506,0.46697847,2144.8,2144.3,0.0011]
[1772664033406,1.63264266,2144.7,2144.3,0.0011]
[1772664033929,0.46697847,2144.6,2144.3,0.0011]
[1772664034135,0.46697847,2144.6,2144.4,0.0011]
[1772664035539,1.63272197,2144.6,2144.4,0.0011]
[1772664035739,1.63270092,2144.6,2144.4,0.0011]
[1772664036533,1.16572245,2144.6,2144.4,0.0011]
[1772664036724,4.66267687,2144.7,2144.4,0.0011]
[1772664036725,0.46697847,2144.7,2144.5,0.0011]
[1772664037735,1.16571854,2144.6,2144.5,0.0011]
[1772664038328,1.16571854,2144.6,2144.2,0.45765971]
[1772664038636,1.63268675,2144.7,2144.4,0.0022]
[1772664041153,0.46697847,2144.6,2144.4,0.0022]
[1772664042030,1.63275137,2144.5,2144.4,0.0022]
[1772664042846,0.46697847,2144.4,2144.0,0.0011]
[1772664043431,0.46697847,2144.4,2143.7,0.0011]
[1772664043756,0.46697847,2144.3,2143.7,0.0011]
[1772664044118,0.46697847,2144.1,2143.7,0.0011]
[1772664044515,0.46697847,2144.1,2143.7,0.0022]
[1772664045138,0.46697847,2144.1,2144.0,0.0011]
[1772664045939,0.46697847,2144.1,2143.7,0.0011]
[1772664046141,1.16604477,2144.0,2143.7,0.0011]
[1772664046334,0.46697847,2143.9,2143.7,0.0011]
[1772664046534,0.46697847,2143.9,2143.3,0.0011]
[1772664046729,0.46697847,2143.9,2143.4,0.0011]
[1772664048350,1.16615355,2143.8,2143.4,0.0011]
[1772664048521,0.46697847,2143.7,2143.4,0.0011]
[1772664049757,0.46697847,2143.7,2143.3,0.0011]
[1772664049947,0.46697847,2143.7,2143.4,0.0011]
[1772664050957,1.16626236,2143.6,2143.4,0.0011]
[1772664052302,0.49271896,2143.5,2143.4,0.0011]
[1772664052456,1.16626236,2143.6,2143.4,0.0011]
[1772664052650,0.49271896,2143.5,2143.4,0.0011]
[1772664053041,1.65903573,2143.5,2143.4,0.0011]
[1772664053630,1.65903573,2143.5,2143.3,0.0011]
[1772664053861,0.49271896,2143.4,2143.3,0.0022]
[1772664054157,0.00078489,2143.4,2143.3,0.0022]
[1772664054350,1.16631677,2143.5,2143.3,0.0022]
[1772664056652,0.49271896,2143.6,2143.3,0.0022]
[1772664056858,0.001,2143.5,2143.3,0.0022]
[1772664057368,0.49371896,2143.5,2143.4,0.0011]
[1772664057954,0.49371896,2143.5,2143.1,0.0011]
[1772664058254,0.49271896,2143.3,2143.0,0.0011]
[1772664058457,0.49271896,2143.3,2143.0,0.0033]
[1772664058865,0.49271896,2143.3,2142.7,0.1690277]
[1772664059039,0.49271896,2143.3,2142.2,0.45241069]
[1772664059040,0.49271896,2142.9,2142.2,0.45241069]
[1772664059234,0.49271896,2143.1,2142.2,0.45461069]
[1772664059656,1.822,2143.3,2142.3,0.45241069]
[1772664059657,0.49271896,2143.3,2142.3,0.45241069]
[1772664060237,1.16641528,2143.4,2142.5,0.45241069]
[1772664060467,0.49271896,2143.3,2142.6,0.0022]
[1772664060655,0.49271896,2143.1,2142.1,1.37414667]
[1772664060858,0.49271896,2143.1,2142.1,1.33119857]
[1772664061167,0.49271896,2143.1,2142.2,0.45241069]
[1772664061354,0.49271896,2143.1,2142.2,0.45461069]
[1772664062250,1.16658889,2143.0,2142.4,0.45241069]
[1772664062556,1.65930785,2143.0,2142.4,0.45241069]
[1772664064239,0.49271896,2142.9,2142.4,0.45241069]
[1772664065135,0.49271896,2142.9,2142.5,0.0022]
[1772664065340,0.49271896,2142.9,2142.3,0.0022]
[1772664066470,1.65941673,2142.8,2142.3,0.0022]
[1772664066768,0.49271896,2142.7,2142.3,0.0022]
[1772664068553,1.16680668,2142.6,2142.5,0.0011]
[1772664070571,1.16680668,2142.6,2142.3,0.0011]
[1772664070572,0.49271896,2142.5,2142.4,0.0022]
[1772664070782,1.16680668,2142.6,2142.2,0.0022]
[1772664072284,1.16680668,2142.6,2142.2,0.45461069]
[1772664073766,4.66607176,2143.2,2142.2,0.45461069]
[1772664073767,4.66637787,2143.0,2142.3,0.45241069]
[1772664074092,1.2301418,2144.1,2142.6,0.45241069]
[1772664074253,1.2301418,2144.1,2143.0,0.45241069]
[1772664074572,0.001,2144.5,2143.4,0.45241069]
[1772664074986,0.001,2144.5,2143.3,1.1664256]
[1772664074987,0.001,2144.5,2143.6,2.67515035]
[1772664075191,0.001,2144.5,2143.8,0.45241069]
[1772664075359,0.001,2144.5,2144.2,0.45241069]
[1772664075694,0.001,2144.9,2144.2,0.45241069]
[1772664076565,0.001,2144.9,2144.4,0.45241069]
[1772664077172,0.001,2144.9,2144.5,0.45241069]
[1772664079373,0.45527221,2144.7,2143.7,0.48533111]
[1772664079572,0.45527221,2144.7,2143.5,1.35393399]
[1772664079573,0.45527221,2144.4,2143.5,0.18763835]
[1772664079766,0.45527221,2144.4,2143.1,0.48533111]
[1772664080092,0.45527221,2144.2,2143.1,0.48533111]
[1772664080662,10.31125872,2144.1,2143.2,0.48533111]
[1772664081202,1.16560984,2144.8,2143.5,0.48533111]
[1772664081404,8.79861276,2144.8,2143.8,0.48533111]
[1772664081571,0.001,2144.7,2143.8,0.48533111]
[1772664082087,0.001,2144.7,2144.2,0.48533111]
[1772664082463,0.001,2144.7,2144.4,0.48533111]
[1772664083466,0.001,2144.7,2144.5,1.1657729]
[1772664084165,0.001,2144.7,2144.5,1.65110401]
[1772664087170,0.46521538,2144.7,2144.0,4.296013]
[1772664087369,0.46521538,2144.7,2143.9,1.64392683]
[1772664087584,8.79861276,2144.6,2143.9,1.64392683]
[1772664088202,9.26282814,2144.6,2143.9,1.64392683]
[1772664088500,0.46421538,2144.5,2143.7,1.16726904]
[1772664089001,0.46421538,2144.3,2143.7,1.16726904]
[1772664089167,0.46421538,2144.3,2143.5,1.16740876]
[1772664089364,8.79751276,2144.2,2143.5,1.16740876]
[1772664090283,9.26172814,2144.2,2143.5,1.16740876]
[1772664090897,0.46421538,2144.0,2143.5,0.0011]
[1772664091097,1.16609916,2143.9,2143.5,0.0011]
[1772664091269,1.63031454,2143.9,2143.5,0.0011]
[1772664091772,0.46421538,2143.8,2143.5,0.0011]
[1772664092495,0.46421538,2143.8,2143.2,0.0011]
[1772664092686,8.79641276,2143.7,2143.2,0.0011]
[1772664093315,9.96266984,2143.7,2143.2,0.0011]
[1772664093483,8.79641276,2143.6,2143.2,0.0011]
[1772664094008,9.26062814,2143.6,2143.2,0.0011]
[1772664094177,0.46421538,2143.5,2143.2,0.0011]
[1772664095224,0.46421538,2143.5,2142.5,3.0889181]
[1772664095503,1.16625708,2143.7,2142.4,0.4778574]
[1772664095504,1.16648002,2143.2,2142.4,0.4778574]
[1772664095682,0.46421538,2143.2,2142.3,0.68090173]
[1772664095884,0.46421538,2143.2,2142.3,1.84787015]
[1772664096202,0.46421538,2143.0,2142.3,1.37001275]
[1772664096370,0.46421538,2143.0,2142.1,2.04586048]
[1772664096575,9.26062814,2142.9,2142.1,2.04586048]
[1772664096770,9.26062814,2142.9,2141.3,0.4778574]
[1772664096771,0.46421538,2142.9,2141.3,0.4778574]
[1772664096975,0.46421538,2142.7,2141.3,0.4778574]
[1772664097474,0.46421538,2142.5,2141.2,1.16752626]
[1772664098298,1.16680668,2142.6,2141.2,1.16752626]
[1772664098504,8.79641276,2142.5,2141.3,0.4778574]
[1772664098688,0.065536,2143.4,2141.2,1.16752626]
[1772664098689,1.16640972,2143.4,2141.5,0.4778574]
[1772664098896,1.16640972,2143.4,2141.4,0.065536]
[1772664098897,8.79641276,2143.3,2141.7,0.4778574]
[1772664099273,1.16653445,2143.1,2141.9,0.4778574]
[1772664099474,0.46421538,2143.0,2141.8,1.6450999]
[1772664100294,0.46421538,2143.0,2141.9,0.4778574]
[1772664100601,8.79641276,2142.9,2141.9,0.4778574]
[1772664101281,8.79641276,2142.9,2142.0,1.64499092]
[1772664101603,8.79641276,2142.9,2142.1,0.4778574]
[1772664102327,9.96307246,2142.9,2142.1,0.4778574]
[1772664102800,10.42728784,2142.9,2141.9,1.665]
[1772664102998,9.96307246,2142.9,2141.8,1.64505692]
[1772664103180,0.46421538,2142.8,2141.6,6.32333653]
[1772664103384,0.46421538,2142.6,2141.6,6.80119393]
[1772664103694,2.96762821,2142.5,2141.6,3.30220891]
[1772664103906,8.79641276,2142.5,2141.7,0.4778574]
[1772664104282,0.46421538,2142.4,2141.6,1.16735151]
[1772664105084,9.26062814,2142.3,2141.6,1.16735151]
[1772664105285,0.46421538,2142.3,2141.6,1.16735151]
[1772664105475,1.16702455,2142.2,2141.5,1.16740602]
[1772664105682,9.96343731,2142.2,2141.5,1.16740602]
[1772664106189,9.96343731,2142.2,2140.6,1.40145169]
[1772664106190,0.46421538,2141.5,2139.8,1.673]
[1772664106388,0.46421538,2141.5,2139.8,1.16833179]
[1772664106389,0.46421538,2141.1,2139.8,1.16833179]
[1772664106783,3.43184359,2141.0,2139.8,1.16833179]
[1772664107002,0.46421538,2140.9,2139.8,1.16833179]
[1772664107309,0.46421538,2140.9,2139.7,1.16838809]
[1772664107613,1.16784229,2140.7,2139.7,1.16838809]
[1772664107813,2.96762821,2140.6,2139.7,1.16838809]
[1772664108023,2.96762821,2140.6,2139.8,1.663]
[1772664108609,4.67030991,2141.2,2139.9,0.48518939]
[1772664108610,1.62044033,2141.2,2139.9,0.48518939]
[1772664108810,2.96762821,2141.1,2139.9,0.48518939]
[1772664109028,1.16727886,2141.8,2139.9,0.48518939]
[1772664109216,4.26528592,2141.9,2139.9,0.55072539]
[1772664109727,0.45282921,2141.8,2140.3,0.48518939]
[1772664109904,0.45282921,2141.8,2140.4,1.659]
[1772664110108,0.45282921,2141.8,2140.5,0.48518939]
[1772664111802,1.62012025,2141.8,2140.6,1.16789685]
[1772664112008,1.62012025,2141.8,2140.7,0.48518939]
[1772664112209,1.16729104,2141.8,2140.7,0.48518939]
[1772664112819,1.16729104,2141.8,2140.8,2.11018939]
[1772664113231,1.62012025,2141.8,2140.8,2.11018939]
[1772664114032,1.62012025,2141.8,2140.9,1.16773319]
[1772664115823,1.62012025,2141.8,2140.9,2.82073319]
[1772664116329,1.62012025,2141.8,2140.9,2.82473319]
[1772664117546,1.62012025,2141.8,2140.9,1.16773319]
[1772664119523,1.62012025,2141.8,2140.9,1.65292258]
[1772664120332,0.001,2141.6,2140.9,1.65292258]
[1772664121348,0.45282921,2142.8,2141.0,0.48518939]
[1772664121547,0.45282921,2142.8,2141.1,0.065536]
[1772664121844,0.31338113,2143.1,2142.0,0.48518939]
[1772664122023,0.31338113,2143.1,2141.7,0.065536]
[1772664122024,1e-08,2143.1,2142.2,0.48518939]
[1772664122224,0.45282922,2143.1,2141.9,0.48518939]
[1772664122545,0.45282922,2143.1,2141.7,1.65248639]
[1772664122744,0.45282922,2143.1,2141.7,3.28948639]
[1772664122950,0.45282922,2143.1,2141.7,3.29248639]
[1772664124634,0.45282921,2142.9,2141.7,3.29248639]
[1772664126543,0.45282921,2142.7,2141.7,3.29248639]
[1772664127059,0.45282921,2142.7,2141.3,3.32170445]
[1772664127392,0.45282921,2142.7,2141.3,1.65270445]
[1772664127659,0.45282921,2142.7,2141.3,3.32370445]
[1772664127953,0.45282921,2142.7,2141.3,1.65270445]
[1772664128653,1.16680668,2142.6,2141.3,1.65270445]
[1772664128860,0.45282921,2142.5,2141.3,1.65270445]
[1772664129324,0.45282921,2142.5,2141.3,0.48518939]
[1772664129532,0.45282921,2142.5,2141.2,1.1675309]
[1772664129963,1.16680668,2142.6,2141.0,2.35264733]
[1772664129964,0.45282921,2142.1,2141.0,0.18545794]
[1772664130763,0.45282921,2141.9,2140.6,1.16786872]
[1772664132473,0.45282921,2141.9,2140.8,0.0011]
[1772664132658,0.45282921,2141.7,2140.8,0.0011]
[1772664134634,1.16735151,2141.6,2140.8,0.0011]
[1772664134830,0.45282921,2141.5,2140.8,0.0011]
[1772664137331,1.62028974,2141.4,2140.8,0.0011]
[1772664137871,0.45282921,2141.3,2140.8,0.0011]
[1772664139063,0.45282921,2141.3,2140.5,0.0011]
[1772664139567,0.47280188,2141.1,2140.5,0.0011]
[1772664141346,4.67027834,2141.3,2140.6,1.16789685]
[1772664141663,5.14308022,2141.3,2140.6,1.16789685]
[1772664142862,1.64031694,2141.3,2140.6,1.65570628]
[1772664146070,1.16749262,2141.4,2140.8,0.0011]
[1772664146277,1.66597541,2141.4,2140.8,0.0011]
[1772664146479,0.001,2141.1,2140.8,0.0011]
[1772664150082,0.001,2141.1,2140.9,1.16773319]
[1772664153893,1.66587198,2141.6,2140.9,1.65489463]
[1772664154095,1.16746053,2141.4,2140.9,1.65489463]
[1772664154265,1.66594332,2141.4,2140.9,1.65489463]
[1772664154460,1.66594332,2141.4,2140.9,1.16773319]
[1772664157680,1.66594744,2141.4,2140.9,1.65489463]
[1772664158377,1.66594744,2141.4,2140.8,4.67203278]
[1772664158579,1.66594744,2141.4,2140.8,0.0011]
[1772664158774,0.49848279,2141.4,2140.8,0.0011]
[1772664158976,0.49848279,2141.4,2141.1,0.0011]
[1772664159176,0.001,2141.2,2141.1,0.0011]
[1772664165164,3.3544767,2142.1,2141.4,0.48716144]
[1772664165482,0.49848279,2142.0,2141.4,0.48716144]
[1772664166692,1.66555227,2142.2,2141.4,0.48716144]
[1772664167192,1.66555227,2142.2,2141.6,0.48716144]
[1772664167193,0.49848279,2142.2,2141.6,0.48716144]
[1772664169100,1.66551571,2142.2,2141.6,0.48716144]
[1772664169302,1.66551571,2142.2,2141.7,1.64385178]
[1772664169798,0.49848279,2142.2,2141.7,1.64385178]
[1772664170199,0.49848279,2142.2,2141.1,2.20019189]
[1772664170493,0.47612694,2141.7,2140.8,0.0011]
[1772664170692,0.47612694,2141.7,2140.8,4.53595013]
[1772664171101,0.47612694,2141.7,2140.6,0.0011]
[1772664171306,0.47612694,2141.5,2140.6,0.0011]
[1772664172787,0.47612694,2141.5,2141.4,0.0011]
[1772664172986,0.47612694,2141.5,2140.6,0.0011]
[1772664173601,0.47612694,2141.3,2141.1,0.0011]
[1772664174011,0.47612694,2141.3,2138.8,1.40263709]
[1772664174174,0.47612694,2139.9,2138.9,0.47955478]
[1772664174531,0.47612694,2139.9,2138.1,4.14981634]
[1772664174532,0.47612694,2137.7,2135.4,0.47655478]
[1772664174677,2.21177633,2138.1,2136.5,0.47655478]
[1772664174872,0.47612694,2138.4,2136.7,0.47655478]
[1772664175095,2.21178641,2138.0,2136.7,0.47655478]
[1772664175307,2.74744216,2137.9,2136.9,0.47655478]
[1772664175488,2.74744216,2137.8,2136.8,2.76497137]
[1772664175679,2.74744216,2137.7,2136.8,3.24152615]
[1772664176002,0.47612694,2138.0,2136.8,1.64652615]
[1772664176197,2.73789392,2137.9,2136.9,1.59]
[1772664176894,2.73789392,2137.9,2136.8,1.6465242]
[1772664177091,0.47612694,2138.0,2136.9,1.603]
[1772664177412,1.64549621,2138.0,2136.9,2.77286516]
[1772664177602,2.73055351,2137.9,2136.9,1.603]
[1772664177799,2.73055351,2137.9,2136.8,1.64649152]
[1772664177998,2.73055351,2137.9,2136.9,1.614]
[1772664178193,1.64549621,2138.0,2137.0,1.618]
[1772664178381,2.72498388,2137.9,2137.0,1.618]
[1772664178580,2.72498388,2137.9,2137.0,1.623]
[1772664178906,3.20111082,2137.9,2136.5,0.47655478]
[1772664179112,3.20111082,2137.8,2136.6,1.628]
[1772664179405,0.47612694,2137.8,2136.6,1.628]
[1772664179708,1.16948121,2137.7,2136.6,1.628]
[1772664179982,0.47612694,2137.6,2136.5,0.47655478]
[1772664180124,0.47612694,2137.5,2136.2,0.47655478]
[1772664180294,0.47612694,2137.4,2136.3,1.602]
[1772664180827,0.47612694,2137.4,2136.1,2.78031879]
[1772664181033,0.47612694,2137.4,2136.1,1.17031879]
[1772664181202,0.47612694,2137.4,2136.0,4.68146936]
[1772664181203,0.47612694,2137.4,2135.7,2.78457639]
[1772664181603,1.16980955,2137.1,2135.8,1.615]
[1772664181805,0.47612694,2137.0,2135.8,1.615]
[1772664182141,0.47612694,2137.0,2135.8,1.618]
[1772664182303,0.47612694,2137.0,2135.7,1.623]
[1772664182893,0.47612694,2136.8,2135.3,1.626]
[1772664183089,0.47612694,2136.8,2135.2,2.1766031]
[1772664183090,0.47612694,2136.8,2135.2,2.17663648]
[1772664183296,0.47612694,2136.8,2135.2,2.65319126]
[1772664183514,0.47612694,2136.8,2135.4,0.47655478]
[1772664183746,0.47612694,2137.1,2135.6,0.47655478]
[1772664183920,1.16964536,2137.4,2135.6,0.47655478]
[1772664184124,1.16948121,2137.7,2135.8,0.47655478]
[1772664184476,1.64559488,2137.8,2135.8,0.47655478]
[1772664184819,1.64559389,2137.8,2136.2,0.47655478]
[1772664185014,1.16946695,2137.8,2136.4,0.47655478]
[1772664185223,1.16946695,2137.8,2136.6,0.47655478]
[1772664185822,1.64544405,2138.0,2136.7,1.64658332]
[1772664186074,0.47612694,2137.9,2136.8,2.00455478]
[1772664186368,1.16931711,2138.0,2136.9,0.47655478]
[1772664186514,0.47612694,2137.9,2136.7,1.17002854]
[1772664186714,0.47612694,2137.9,2136.8,1.54]
[1772664186931,0.14948499,2137.8,2135.9,0.47655478]
[1772664187138,0.47612694,2137.5,2136.0,0.47655478]
[1772664187341,0.47612694,2137.5,2136.1,0.47655478]
[1772664187736,0.47612694,2137.5,2136.2,2.01055478]
[1772664187937,0.47612694,2137.3,2136.3,1.17024762]
[1772664189339,1.16964536,2137.4,2136.4,2.03555478]
[1772664189854,0.47612694,2137.5,2136.5,1.17013807]
[1772664190353,0.47612694,2137.5,2136.4,1.64670741]
[1772664190540,0.47612694,2137.5,2136.4,2.74915263]
[1772664191051,0.47612694,2137.5,2136.4,1.17015263]
[1772664191254,0.47612694,2137.5,2136.0,4.68164148]
[1772664191255,1.96263132,2137.5,2136.0,1.17041198]
[1772664191453,0.47612694,2137.4,2135.8,1.17158183]
[1772664191661,0.47612694,2137.4,2135.9,1.592]
[1772664192121,0.47612694,2137.2,2135.9,1.588]
[1772664192321,0.47612694,2137.2,2135.9,1.589]
[1772664192946,0.47612694,2137.2,2136.0,0.47655478]
[1772664193649,1.16970008,2137.3,2136.2,0.47655478]
[1772664194027,4.67880035,2137.4,2136.3,1.17024762]
[1772664194355,4.67880035,2137.4,2136.3,1.6468024]
[1772664194927,5.15492729,2137.4,2136.3,1.6468024]
[1772664195430,5.15492729,2137.4,2136.4,1.59]
[1772664195635,5.15492729,2137.4,2136.4,1.593]
[1772664196039,5.15492729,2137.4,2136.5,1.17013807]
[1772664196238,5.15492729,2137.4,2136.5,2.76913807]
[1772664196656,5.15492729,2137.4,2136.5,1.17013807]
[1772664196857,5.15492729,2137.4,2136.6,1.607]
[1772664197334,5.15492729,2137.4,2136.6,1.614]
[1772664197735,0.001,2137.2,2136.6,1.614]
[1772664197943,0.001,2137.2,2136.6,1.621]
[1772664198256,0.001,2137.2,2136.6,2.79103685]
[1772664198453,0.001,2137.2,2136.6,1.17003685]
[1772664198637,0.001,2137.2,2136.6,1.628]
[1772664199163,0.47243826,2137.2,2136.3,0.47655478]
[1772664199334,2.72196814,2137.1,2136.3,0.47655478]
[1772664199957,2.72196814,2137.1,2136.3,1.59849241]
[1772664200254,1.16991904,2136.9,2136.3,0.42824592]
[1772664200459,2.72196814,2136.8,2136.3,0.42824592]
[1772664200643,2.72196814,2136.7,2136.3,0.42824592]
[1772664200847,1.16991904,2136.9,2136.3,1.59849086]
[1772664201041,2.73442046,2136.8,2136.3,1.59849086]
[1772664201241,2.73442046,2136.7,2136.0,1.6349338]
[1772664201441,2.73442046,2136.6,2136.1,2.10852182]
[1772664201640,3.38170545,2136.9,2136.1,2.10852182]
[1772664201641,2.73442046,2136.5,2136.2,0.46452182]
[1772664201837,1.16991904,2136.9,2136.2,0.46452182]
[1772664202170,2.73507804,2136.8,2136.4,1.63471466]
[1772664202517,1.16994301,2136.9,2136.4,2.82319284]
[1772664202642,2.73577604,2136.8,2136.4,3.28771466]
[1772664202845,1.16985029,2137.1,2136.4,3.28771466]
[1772664203060,2.21178641,2136.9,2136.4,3.28771466]
[1772664203227,2.73574251,2136.8,2136.4,3.28771466]
[1772664203427,2.23574251,2136.7,2136.4,2.82319284]
[1772664203648,2.21178641,2136.9,2136.4,1.17019284]
[1772664203934,2.21178641,2136.9,2136.5,1.663]
[1772664204129,3.3176645,2136.7,2136.3,4.68077139]
[1772664204347,0.38456814,2136.5,2136.4,1.667]
[1772664204553,3.3176645,2136.9,2136.3,4.68077139]
[1772664204754,3.3176645,2136.9,2136.4,1.668]
[1772664205142,3.3176645,2136.8,2136.3,1.17024762]
[1772664205434,3.3176645,2136.8,2136.5,1.672]
[1772664206544,1.1700833,2136.6,2135.8,1.17158171]
[1772664206748,3.3176645,2136.5,2135.9,1.672]
[1772664207474,3.3176645,2136.5,2135.8,1.17158171]
[1772664207770,3.3176645,2136.5,2135.9,1.677]
[1772664208073,3.3176645,2136.4,2135.9,1.679]
[1772664208260,3.3176645,2136.4,2136.0,1.17041198]
[1772664208460,3.3176645,2136.5,2136.0,1.17041198]
[1772664208852,3.3176645,2136.5,2136.0,2.85341198]
[1772664209060,3.3176645,2136.6,2136.0,2.85341198]
[1772664209254,3.3176645,2136.7,2136.1,0.46969231]
[1772664209469,4.48764549,2136.8,2136.1,0.46969231]
[1772664210072,3.3176645,2136.8,2136.1,0.46969231]
[1772664210252,3.3176645,2136.7,2136.1,0.46969231]
[1772664210451,4.48764392,2136.8,2136.2,1.1703024]
[1772664210755,3.3176645,2136.8,2136.2,1.63999471]
[1772664212589,4.48765286,2136.8,2136.2,1.63999471]
[1772664212763,4.48765286,2136.8,2136.2,1.1703024]
[1772664213260,3.3176645,2136.7,2136.3,1.701]
[1772664213454,3.3176645,2136.8,2136.3,1.701]
[1772664214855,3.3176645,2136.8,2136.4,1.17019284]
[1772664215363,2.7658767,2136.7,2136.4,1.17019284]
[1772664215561,2.7658767,2136.6,2136.4,1.17019284]
[1772664215758,2.7658767,2136.5,2136.4,1.17019284]
[1772664215960,3.3176645,2136.9,2136.5,0.95572898]
[1772664216164,3.78155388,2137.0,2136.5,2.66372898]
[1772664216681,3.3186645,2137.0,2136.5,2.66372898]
[1772664216980,0.001,2137.0,2136.6,1.1700833]
[1772664219189,0.001,2137.0,2136.5,6.38833323]
[1772664219403,0.001,2137.0,2136.6,1.1700833]
[1772664221798,0.46388938,2137.0,2136.6,1.1700833]
[1772664222479,0.001,2136.8,2136.6,1.1700833]
[1772664224084,0.001,2137.0,2136.6,1.1700833]
[1772664225684,0.001,2137.0,2136.6,1.40511721]
[1772664225894,0.001,2137.0,2136.7,0.23503391]
[1772664226204,0.001,2137.0,2136.8,1.4050077]
[1772664227574,0.001,2137.0,2136.9,0.23503391]
[1772664228092,0.46288938,2137.7,2137.0,0.23503391]
[1772664228410,0.002,2137.5,2137.2,0.23503391]
[1772664228712,0.45245324,2137.7,2137.3,1.724]
[1772664229007,0.45245324,2137.7,2137.0,0.23503391]
[1772664229008,2.76525104,2137.6,2137.0,0.23503391]
[1772664229192,0.002,2137.6,2137.1,1.96003391]
[1772664229509,0.45045324,2138.0,2137.2,0.23503391]
[1772664229722,0.002,2137.9,2137.2,0.23503391]
[1772664229888,0.002,2138.1,2137.2,0.23503391]
[1772664230203,0.002,2138.1,2137.4,0.23503391]
[1772664230409,0.45045324,2138.0,2137.1,0.93227672]
[1772664230612,0.45045324,2137.1,2136.3,0.0002]
[1772664230821,0.45045324,2137.0,2136.3,0.0002]
[1772664232025,0.45045324,2136.8,2136.3,0.0002]
[1772664234184,0.45045324,2136.6,2136.3,0.0002]
[1772664235278,0.45045324,2136.6,2136.5,0.0011]
[1772664236186,1.62053654,2136.6,2136.5,0.0011]
[1772664236387,1.62053654,2136.6,2136.3,0.0002]
[1772664236581,0.45045324,2136.5,2136.3,0.0002]
[1772664237389,1.1700833,2136.6,2136.3,0.0002]
[1772664238207,1.62053654,2136.6,2136.3,0.0002]
[1772664238907,1.1700833,2136.6,2136.3,0.0002]
[1772664240196,1.16989994,2137.0,2136.3,0.23633391]
[1772664240415,1.16966863,2137.4,2136.3,0.23633391]
[1772664240601,0.45045324,2137.4,2136.5,0.23613391]
[1772664241015,0.45045324,2137.4,2136.6,1.589]
[1772664241528,1.62104991,2137.5,2136.7,0.23613391]
[1772664241731,2.7571349,2137.4,2136.7,0.23613391]
[1772664242653,2.7571349,2137.4,2136.8,1.16997379]
[1772664242934,2.7571349,2137.4,2136.7,1.40612737]
[1772664243692,2.7571349,2137.4,2136.8,0.23613391]
[1772664243895,0.001,2137.5,2136.7,1.16999346]
[1772664244502,0.001,2137.5,2136.8,1.629]
[1772664244707,0.001,2137.5,2136.9,1.16991904]
[1772664245110,1.66908052,2138.5,2137.0,1.700536]
[1772664245421,0.5,2138.4,2137.0,1.700536]
[1772664245825,0.5,2138.4,2136.9,1.16991904]
[1772664246004,0.5,2138.4,2137.1,1.643]
[1772664246336,0.5,2138.4,2137.2,1.645]
[1772664246628,3.30852595,2139.1,2137.3,0.065536]
[1772664246923,4.13740176,2139.3,2137.3,0.065536]
[1772664246924,0.5,2139.2,2137.4,3.034]
[1772664247112,0.5,2139.2,2137.5,3.026]
[1772664247311,1.16858041,2139.4,2137.5,3.026]
[1772664247918,1.16858041,2139.4,2137.4,0.21502099]
[1772664248123,1.16858041,2139.4,2137.5,3.02]
[1772664248325,1.16858041,2139.4,2137.7,0.065536]
[1772664248536,1.16851183,2139.5,2137.7,0.065536]
[1772664248815,1.66847762,2139.6,2137.8,4.17842651]
[1772664249518,1.16847762,2139.6,2137.8,4.17842651]
[1772664249718,0.5,2139.5,2137.8,4.17842651]
[1772664249947,0.5,2139.5,2137.8,1.16942651]
[1772664250334,0.5,2139.4,2137.9,1.615]